Workbook

Sheet March 13c
A1: March 13 Calculator
B2: q1 | C2: q2 | D2: q3 | E2: q4 | F2: q5 | G2: q6 | H2: q7 | I2: q8 | J2: q9 | K2: q10 | L2: q11ac | M2: q11b,c | N2: q12 | O2: q13a | P2: q13b | Q2: q14a | R2: q14b | S2: q15 | T2: q16a | U2: q16b | V2: q17 | W2: q18 | X2: q19 | Y2: q20 | Z2: q21 | AA2: q22 | AB2: q23 | AC2: q24 | AD2: q25
B3: Stem and Leaf | C3: Proportion Recipe Questions | D3: AO3 Multiplication Problem | E3: Probability and Relative Frequency | F3: Area and Circumference of Circles | G3: Percentages | H3: Compound Measures | I3: Trial and Improvement | J3: Volume of a Prism | K3: Translations | L3: Probability and Problem Solving | M3: Expand & Factorise Quadratics | N3: midpoint | O3: Pythagoras' Theorem | P3: Trigonometry | Q3: Substitution | R3: More Difficult Rearranging Formulae | S3: Similar Shapes | T3: Percentages | U3: Compound Interest & Depreciation | V3: Using a Calculator | W3: Box plots | X3: Area of Sector & Length of Arcs | Y3: Money problem Solving | AA3: Spheres and Cones | AB3: Stratified Sampling | AC3: Upper and Lower Bounds | AD3: More Difficult Rearranging Formulae
A4: Max Mark | B4: 3 | C4: 3 | D4: 4 | E4: 5 | F4: 3 | G4: 5 | H4: 4 | I4: 4 | J4: 3 | K4: 2 | L4: 2 | M4: 4 | N4: 4 | O4: 3 | P4: 3 | Q4: 2 | R4: 3 | S4: 5 | T4: 3 | U4: 3 | V4: 2 | W4: 5 | X4: 2 | Y4: 3 | Z4: 4 | AA4: 4 | AB4: 2 | AC4: 5 | AD4: 5
A5: Class Average (%) | B5: =AVERAGE(B9:B40)/B$4 -> 0.5476190476 | C5: =AVERAGE(C9:C40)/C$4 -> 0.5 | D5: 0.4464285714 | E5: 0.4642857143 | F5: 0.4047619048 | G5: 0.45 | H5: 0.4285714286 | I5: 0.4017857143 | J5: 0.4404761905 | K5: 0.5357142857 | L5: 0.5357142857 | M5: 0.5714285714 | N5: 0.4107142857 | O5: 0.5476190476 | P5: 0.5119047619 | Q5: 0.5357142857 | R5: 0.5238095238 | S5: 0.5642857143 | T5: 0.5595238095 | U5: 0.5476190476 | V5: 0.5178571429 | W5: 0.4214285714 | X5: 0.4642857143 | Y5: 0.5476190476 | Z5: 0.4375 | AA5: 0.6160714286 | AB5: 0.4464285714 | AC5: 0.4214285714 | AD5: 0.4714285714
A6: Standard Deviation | B6: =STDEV(B9:B39)/B$4 -> 0.3976710566 | C6: =STDEV(C9:C39)/C$4 -> 0.3571722504 | D6: 0.2751863246 | E6: 0.2984084768 | F6: 0.3315649743 | G6: 0.3156416158 | H6: 0.270947778 | I6: 0.2576539967 | J6: 0.3016221088 | K6: 0.3581994951 | L6: 0.4066250304 | M6: 0.2793605699 | N6: 0.3348181217 | O6: 0.3538650287 | P6: 0.2793605699 | Q6: 0.3831780224 | R6: 0.278570298 | S6: 0.3487695681 | T6: 0.3519910613 | U6: 0.3170632437 | V6: 0.3464674336 | W6: 0.3142977391 | X6: 0.3831780224 | Y6: 0.3538650287 | Z6: 0.3236438944 | AA6: 0.3297174917 | AB6: 0.3929773746 | AC6: 0.3235876925 | AD6: 0.3137079827
B7: q1 | C7: q2 | D7: q3 | E7: q4 | F7: q5 | G7: q6 | H7: q7 | I7: q8 | J7: q9 | K7: q10 | L7: q11ac | M7: q11b,c | N7: q12 | O7: q13a | P7: q13b | Q7: q14a | R7: q14b | S7: q15 | T7: q16a | U7: q16b | V7: q17 | W7: q18 | X7: q19 | Y7: q20 | Z7: q21 | AA7: q22 | AB7: q23 | AC7: q24 | AD7: q25 | AE7: Total Marks | AF7: Grade
A8: Name
A9: Sample student 1 | B9: =ROUND(RAND()*B$4,0) -> 2 | C9: =ROUND(RAND()*C$4,0) -> 3 | D9: 2 | E9: 3 | F9: 2 | G9: 2 | H9: 3 | I9: 1 | J9: 0 | K9: 1 | L9: 1 | M9: 3 | N9: 3 | O9: 3 | P9: 1 | Q9: 1 | R9: 2 | S9: 4 | T9: 3 | U9: 0 | V9: 1 | W9: 1 | X9: 1 | Y9: 0 | Z9: 1 | AA9: 3 | AB9: 2 | AC9: 2 | AD9: 5 | AE9: =IF(AD9="","",SUM(B9:AD9)) -> 56 | AF9: =IF(AD9="","",VLOOKUP(AE9,$AH$13:$AI$34,2)) -> B3
A10: Sample student 2 | B10: =ROUND(RAND()*B$4,0) -> 0 | C10: 1 | D10: 2 | E10: 5 | F10: 1 | G10: 3 | H10: 2 | I10: 0 | J10: 1 | K10: 1 | L10: 0 | M10: 2 | N10: 2 | O10: 2 | P10: 1 | Q10: 1 | R10: 2 | S10: 1 | T10: 0 | U10: 2 | V10: 1 | W10: 5 | X10: 0 | Y10: 1 | Z10: 1 | AA10: 2 | AB10: 0 | AC10: 3 | AD10: 3 | AE10: =IF(AD10="","",SUM(B10:AD10)) -> 45 | AF10: =IF(AD10="","",VLOOKUP(AE10,$AH$13:$AI$34,2)) -> C1 | AH10: Grade Boundaries
A11: Sample student 3 | B11: 2 | C11: 3 | D11: 0 | E11: 0 | F11: 0 | G11: 4 | H11: 3 | I11: 1 | J11: 2 | K11: 2 | L11: 2 | M11: 3 | N11: 3 | O11: 2 | P11: 1 | Q11: 2 | R11: 3 | S11: 4 | T11: 1 | U11: 3 | V11: 0 | W11: 4 | X11: 1 | Y11: 2 | Z11: 3 | AA11: 0 | AB11: 2 | AC11: 4 | AD11: 3 | AE11: =IF(AD11="","",SUM(B11:AD11)) -> 60 | AF11: B2
A12: Sample student 4 | B12: 3 | C12: 1 | D12: 4 | E12: 2 | F12: 0 | G12: 2 | H12: 0 | I12: 2 | J12: 1 | K12: 2 | L12: 1 | M12: 3 | N12: 4 | O12: 2 | P12: 1 | Q12: 2 | R12: 2 | S12: 1 | T12: 2 | U12: 1 | V12: 1 | W12: 2 | X12: 0 | Y12: 3 | Z12: 2 | AA12: 4 | AB12: 2 | AC12: 4 | AD12: 3 | AE12: 57 | AF12: B3 | AH12: Non- Calc
A13: Sample student 5 | B13: 2 | C13: 0 | D13: 2 | E13: 1 | F13: 1 | G13: 5 | H13: 2 | I13: 3 | J13: 1 | K13: 1 | L13: 0 | M13: 3 | N13: 0 | O13: 2 | P13: 2 | Q13: 2 | R13: 2 | S13: 1 | T13: 3 | U13: 2 | V13: 1 | W13: 4 | X13: 1 | Y13: 3 | Z13: 1 | AA13: 4 | AB13: 0 | AC13: 2 | AD13: 0 | AE13: 51 | AF13: B3 | AH13: 0 | AI13: F3
A14: Sample student 6 | B14: 0 | C14: 1 | D14: 1 | E14: 2 | F14: 2 | G14: 2 | H14: 2 | I14: 0 | J14: 3 | K14: 1 | L14: 1 | M14: 1 | N14: 4 | O14: 1 | P14: 2 | Q14: 1 | R14: 0 | S14: 4 | T14: 2 | U14: 3 | V14: 1 | W14: 1 | X14: 1 | Y14: 0 | Z14: 3 | AA14: 3 | AB14: 2 | AC14: 1 | AD14: 5 | AE14: 50 | AF14: C1 | AH14: =AH13+(AH16-AH13)/3 -> 2.333333333 | AI14: F2
A15: Sample student 7 | B15: 1 | C15: 1 | D15: 2 | E15: 3 | F15: 2 | G15: 3 | H15: 1 | I15: 0 | J15: 0 | K15: 0 | L15: 0 | M15: 3 | N15: 0 | O15: 0 | P15: 1 | Q15: 2 | R15: 2 | S15: 5 | T15: 3 | U15: 2 | V15: 1 | W15: 3 | X15: 1 | Y15: 1 | Z15: 1 | AA15: 3 | AB15: 0 | AC15: 0 | AD15: 3 | AE15: 44 | AF15: C2 | AH15: =AH13+2*(AH16-AH13)/3 -> 4.666666667 | AI15: F1
A16: Sample student 8 | B16: 1 | C16: 2 | D16: 3 | E16: 0 | F16: 0 | G16: 3 | H16: 1 | I16: 1 | J16: 2 | K16: 0 | L16: 2 | M16: 2 | N16: 2 | O16: 1 | P16: 2 | Q16: 0 | R16: 1 | S16: 2 | T16: 2 | U16: 3 | V16: 1 | W16: 1 | X16: 0 | Y16: 2 | Z16: 4 | AA16: 2 | AB16: 1 | AC16: 5 | AD16: 3 | AE16: 49 | AF16: C1 | AH16: 7 | AI16: E3
A17: Sample student 9 | B17: 3 | C17: 0 | D17: 1 | E17: 5 | F17: 1 | G17: 1 | H17: 0 | I17: 2 | J17: =ROUND(RAND()*J$4,0) -> 3 | K17: 1 | L17: 2 | M17: 1 | N17: 3 | O17: 1 | P17: 3 | Q17: 1 | R17: 3 | S17: 4 | T17: 0 | U17: 2 | V17: 2 | W17: 5 | X17: 1 | Y17: 1 | Z17: 2 | AA17: 4 | AB17: 2 | AC17: 1 | AD17: 3 | AE17: 58 | AF17: B2 | AH17: =AH16+(AH19-AH16)/3 -> 10 | AI17: E2
A18: Sample student 10 | B18: 2 | C18: 2 | D18: 0 | E18: 2 | F18: 1 | G18: 2 | H18: 2 | I18: 3 | J18: 1 | K18: 2 | L18: 2 | M18: 1 | N18: 2 | O18: 3 | P18: 2 | Q18: 1 | R18: 1 | S18: 2 | T18: 3 | U18: 2 | V18: 0 | W18: 3 | X18: 2 | Y18: 1 | Z18: 1 | AA18: 0 | AB18: 0 | AC18: 0 | AD18: 1 | AE18: 44 | AF18: C2 | AH18: =AH16+2*(AH19-AH16)/3 -> 13 | AI18: E1
A19: Sample student 11 | B19: 3 | C19: 2 | D19: 2 | E19: 1 | F19: 2 | G19: 0 | H19: 3 | I19: 2 | J19: 0 | K19: 1 | L19: 2 | M19: 3 | N19: 2 | O19: 1 | P19: 1 | Q19: 0 | R19: 3 | S19: 5 | T19: 2 | U19: 1 | V19: 1 | W19: 2 | X19: 1 | Y19: 3 | Z19: 1 | AA19: 3 | AB19: 0 | AC19: 0 | AD19: 3 | AE19: 50 | AF19: C1 | AH19: 16 | AI19: D3
A20: Sample student 12 | B20: 0 | C20: 2 | D20: 1 | E20: 2 | F20: 3 | G20: 1 | H20: 1 | I20: 2 | J20: 1 | K20: 1 | L20: 2 | M20: 0 | N20: 2 | O20: 3 | P20: 1 | Q20: 1 | R20: 1 | S20: 4 | T20: 3 | U20: 1 | V20: 1 | W20: 3 | X20: 0 | Y20: 1 | Z20: 3 | AA20: 1 | AB20: 1 | AC20: 1 | AD20: 2 | AE20: 45 | AF20: C1 | AH20: =AH19+(AH22-AH19)/3 -> 21.33333333 | AI20: D2
A21: Sample student 13 | B21: 3 | C21: 2 | D21: 1 | E21: 2 | F21: 1 | G21: 1 | H21: 0 | I21: 3 | J21: 2 | K21: 1 | L21: 2 | M21: 2 | N21: 0 | O21: 2 | P21: 2 | Q21: 0 | R21: 1 | S21: 5 | T21: 3 | U21: 1 | V21: 1 | W21: 5 | X21: 2 | Y21: 1 | Z21: 1 | AA21: 1 | AB21: 1 | AC21: 2 | AD21: 1 | AE21: 49 | AF21: C1 | AH21: =AH19+2*(AH22-AH19)/3 -> 26.66666667 | AI21: D1
A22: Sample student 14 | B22: 0 | C22: 2 | D22: 2 | E22: 0 | F22: 0 | G22: 3 | H22: 2 | I22: 3 | J22: 2 | K22: 1 | L22: 0 | M22: 3 | N22: 3 | O22: 1 | P22: 1 | Q22: 2 | R22: 2 | S22: 3 | T22: 2 | U22: 2 | V22: 0 | W22: 0 | X22: 2 | Y22: 2 | Z22: 2 | AA22: 3 | AB22: 1 | AC22: 3 | AD22: 3 | AE22: 50 | AF22: C1 | AH22: 32 | AI22: C3
A23: Sample student 15 | B23: 1 | C23: 1 | D23: 2 | E23: 3 | F23: 3 | G23: 2 | H23: 3 | I23: 2 | J23: 2 | K23: 0 | L23: 1 | M23: 2 | N23: 2 | O23: 3 | P23: 1 | Q23: 1 | R23: 0 | S23: 4 | T23: 2 | U23: 2 | V23: 1 | W23: 0 | X23: 2 | Y23: 2 | Z23: 4 | AA23: 4 | AB23: 1 | AC23: 1 | AD23: 5 | AE23: 57 | AF23: B3 | AH23: =AH22+(AH25-AH22)/3 -> 38.33333333 | AI23: C2
A24: Sample student 16 | B24: 3 | C24: 2 | D24: 1 | E24: 2 | F24: 1 | G24: 0 | H24: 2 | I24: 3 | J24: 3 | K24: 1 | L24: 0 | M24: 1 | N24: 4 | O24: 1 | P24: 3 | Q24: 1 | R24: 1 | S24: 0 | T24: 3 | U24: 0 | V24: 2 | W24: 1 | X24: 1 | Y24: 2 | Z24: 3 | AA24: 4 | AB24: 2 | AC24: 4 | AD24: 3 | AE24: 54 | AF24: B3 | AH24: =AH22+2*(AH25-AH22)/3 -> 44.66666667 | AI24: C1
A25: Sample student 17 | B25: 2 | C25: 1 | D25: 2 | E25: 1 | F25: 1 | G25: 2 | H25: 1 | I25: 1 | J25: 0 | K25: 1 | L25: 2 | M25: 4 | N25: 1 | O25: 0 | P25: 0 | Q25: 0 | R25: 2 | S25: 2 | T25: 0 | U25: 3 | V25: 2 | W25: 0 | X25: 2 | Y25: 1 | Z25: 3 | AA25: 3 | AB25: 1 | AC25: 4 | AD25: 0 | AE25: 42 | AF25: C2 | AH25: 51 | AI25: B3
A26: Sample student 18 | B26: =ROUND(RAND()*B$4,0) -> 3 | C26: 3 | D26: 2 | E26: 2 | F26: 2 | G26: 5 | H26: 2 | I26: 2 | J26: 1 | K26: 0 | L26: 1 | M26: 1 | N26: 0 | O26: 1 | P26: 2 | Q26: 0 | R26: 2 | S26: 2 | T26: 2 | U26: 2 | V26: 2 | W26: 2 | X26: 0 | Y26: 1 | Z26: 2 | AA26: 3 | AB26: 1 | AC26: 1 | AD26: 1 | AE26: 48 | AF26: C1 | AH26: =AH25+(AH28-AH25)/3 -> 57.33333333 | AI26: B2
A27: Sample student 19 | B27: 3 | C27: 3 | D27: 1 | E27: 3 | F27: 0 | G27: 1 | H27: 4 | I27: 0 | J27: 1 | K27: 2 | L27: 1 | M27: 1 | N27: 0 | O27: 1 | P27: 1 | Q27: 2 | R27: 1 | S27: 2 | T27: 2 | U27: 2 | V27: 1 | W27: 0 | X27: 0 | Y27: 3 | Z27: 0 | AA27: 1 | AB27: 1 | AC27: 3 | AD27: 4 | AE27: 44 | AF27: C2 | AH27: =AH25+2*(AH28-AH25)/3 -> 63.66666667 | AI27: B1
A28: Sample student 20 | B28: 3 | C28: 0 | D28: 0 | E28: 3 | F28: 0 | G28: 0 | H28: 1 | I28: 3 | J28: 1 | K28: 0 | L28: 1 | M28: 2 | N28: 0 | O28: 3 | P28: 2 | Q28: 1 | R28: 1 | S28: 1 | T28: 1 | U28: 2 | V28: 1 | W28: 3 | X28: 2 | Y28: 0 | Z28: 1 | AA28: 2 | AB28: 0 | AC28: 0 | AD28: 0 | AE28: 34 | AF28: C3 | AH28: 70 | AI28: A3
A29: Sample student 21 | B29: 0 | C29: 1 | D29: 2 | E29: 2 | F29: 1 | G29: 1 | H29: 1 | I29: 1 | J29: 2 | K29: 0 | L29: 1 | M29: 1 | N29: 2 | O29: 1 | P29: 3 | Q29: 1 | R29: 2 | S29: 1 | T29: 1 | U29: 1 | V29: 0 | W29: 3 | X29: 2 | Y29: 2 | Z29: 3 | AA29: 1 | AB29: 0 | AC29: 0 | AD29: 2 | AE29: 38 | AF29: C3 | AH29: =AH28+(AH31-AH28)/3 -> 75 | AI29: A2
A30: Sample student 22 | B30: 2 | C30: 3 | D30: 4 | E30: 4 | F30: 0 | G30: 2 | H30: 3 | I30: 3 | J30: 1 | K30: 1 | L30: 0 | M30: 2 | N30: 2 | O30: 3 | P30: 1 | Q30: 2 | R30: 1 | S30: 0 | T30: 1 | U30: 0 | V30: 1 | W30: 2 | X30: 1 | Y30: 3 | Z30: 0 | AA30: 1 | AB30: 1 | AC30: 0 | AD30: 3 | AE30: 47 | AF30: C1 | AH30: =AH28+2*(AH31-AH28)/3 -> 80 | AI30: A1
A31: Sample student 23 | B31: 2 | C31: 1 | D31: 0 | E31: 0 | F31: 1 | G31: 5 | H31: 1 | I31: 1 | J31: 1 | K31: 2 | L31: 1 | M31: 2 | N31: 1 | O31: 3 | P31: 2 | Q31: 0 | R31: 2 | S31: 0 | T31: 0 | U31: 2 | V31: 2 | W31: 0 | X31: 1 | Y31: 1 | Z31: 0 | AA31: 2 | AB31: 0 | AC31: 4 | AD31: 4 | AE31: 41 | AF31: C2 | AH31: 85 | AI31: A*3
A32: Sample student 24 | B32: 1 | C32: 3 | D32: 3 | E32: 4 | F32: 0 | G32: 4 | H32: 1 | I32: 2 | J32: 0 | K32: 1 | L32: 0 | M32: 4 | N32: 0 | O32: 1 | P32: 2 | Q32: 0 | R32: 1 | S32: 5 | T32: 0 | U32: 1 | V32: 0 | W32: 2 | X32: 0 | Y32: =ROUND(RAND()*Y$4,0) -> 3 | Z32: 0 | AA32: 4 | AB32: 2 | AC32: 2 | AD32: 3 | AE32: 49 | AF32: C1 | AH32: =AH31+(AH34-AH31)/3 -> 90 | AI32: A*2
A33: Sample student 25 | B33: 3 | C33: 0 | D33: 3 | E33: 1 | F33: 2 | G33: 1 | H33: 2 | I33: 1 | J33: 2 | K33: 2 | L33: 1 | M33: 3 | N33: 1 | O33: 3 | P33: 1 | Q33: 2 | R33: =ROUND(RAND()*R$4,0) -> 3 | S33: 5 | T33: 1 | U33: 1 | V33: 1 | W33: 2 | X33: 0 | Y33: 3 | Z33: 2 | AA33: 1 | AB33: 0 | AC33: 4 | AD33: 2 | AE33: 53 | AF33: B3 | AH33: =AH31+2*(AH34-AH31)/3 -> 95 | AI33: A*1
A34: Sample student 26 | B34: 0 | C34: 0 | D34: 2 | E34: 4 | F34: 3 | G34: 4 | H34: 0 | I34: 1 | J34: 1 | K34: 1 | L34: 2 | M34: 4 | N34: 1 | O34: 0 | P34: 0 | Q34: 1 | R34: 1 | S34: 5 | T34: 2 | U34: 2 | V34: 2 | W34: 1 | X34: 1 | Y34: 3 | Z34: 1 | AA34: 2 | AB34: 1 | AC34: 1 | AD34: 0 | AE34: 46 | AF34: C1 | AH34: 100 | AI34: A*1
A35: Sample student 27 | B35: 1 | C35: 2 | D35: 3 | E35: 4 | F35: 2 | G35: 4 | H35: 3 | I35: 1 | J35: 1 | K35: 2 | L35: 0 | M35: 3 | N35: 0 | O35: 0 | P35: 3 | Q35: 1 | R35: 1 | S35: 4 | T35: 1 | U35: 3 | V35: 0 | W35: 1 | X35: 1 | Y35: 0 | Z35: 4 | AA35: 4 | AB35: 0 | AC35: 4 | AD35: 0 | AE35: 53 | AF35: B3
A36: Sample student 28 | B36: 0 | C36: 0 | D36: 2 | E36: 4 | F36: 2 | G36: 0 | H36: 2 | I36: 1 | J36: 2 | K36: 2 | L36: 2 | M36: 4 | N36: 2 | O36: 2 | P36: 1 | Q36: 2 | R36: 1 | S36: 3 | T36: 2 | U36: 0 | V36: 2 | W36: 3 | X36: 0 | Y36: 1 | Z36: 0 | AA36: 4 | AB36: 1 | AC36: 3 | AD36: 1 | AE36: 49 | AF36: C1
AE37: =IF(AD37="","",SUM(C37:AD37)) -> 
